fUST/lending_fUST_20240109
["ID","MTS","AMOUNT","RATE_DAILY","PERIOD"]
[310899856,1704812107895,947.09906256,0.00022639,2]
[310899857,1704812108061,-5000.0,0.00022639,2]
[310899858,1704812108167,-5000.0,0.00022639,2]
[310899859,1704812108224,-3820.03400404,0.00022639,2]
[310899860,1704812108285,-3820.03400404,0.00022639,2]
[310899861,1704812108534,-5000.0,0.00022639,2]
[310899862,1704812108665,-5000.0,0.00022639,2]
[310899863,1704812108940,-5000.0,0.00022639,2]
[310899864,1704812109022,-5000.0,0.00022639,2]
[310899865,1704812109099,-5000.0,0.00022639,2]
[310899866,1704812109442,-5000.0,0.00022639,2]
[310899867,1704812109488,-5000.0,0.00022639,2]
[310899868,1704812109548,-5000.0,0.00022639,2]
[310899869,1704812109629,-5000.0,0.00022639,2]
[310899870,1704812109745,-5000.0,0.00022639,2]
[310899871,1704812109860,-5000.0,0.00022639,2]
[310899872,1704812109954,-5000.0,0.00022639,2]
[310899873,1704812110072,-5000.0,0.00022639,2]
[310899874,1704812110197,-5000.0,0.00022639,2]
[310899875,1704812110301,-5000.0,0.00022639,2]
[310899876,1704812110404,-5000.0,0.00022639,2]
[310899877,1704812110781,-5000.0,0.00022639,2]
[310899878,1704812110815,-5000.0,0.00022639,2]
[310899879,1704812110848,-5000.0,0.00022639,2]
[310899880,1704812110886,-5000.0,0.00022639,2]
[310899881,1704812110920,-5000.0,0.00022639,2]
[310899882,1704812111034,-5000.0,0.00022639,2]
[310899883,1704812111419,-5000.0,0.00022639,2]
[310899884,1704812111468,-5000.0,0.00022639,2]
[310899885,1704812111543,-300.22428887,0.00022639,2]
[310899886,1704812111573,-182.50978617,0.00022639,2]
[310899887,1704812111666,2959.79686083,0.00022639,2]
[310899888,1704812111940,1290.72817531,0.00022638,2]
[310899889,1704812112075,266.74088882,0.00022639,2]
[310899890,1704812112103,266.8383155,0.00022639,2]
[310899891,1704812115143,-3662.35589677,0.00022638,2]
[310899892,1704812115441,-74.74195708,0.00022638,2]
[310899893,1704812115632,-1522.21245058,0.00022639,2]
[310899894,1704812115660,-342.0768725,0.00022639,2]
[310899895,1704812117960,154.90705577,0.00022639,2]
[310899896,1704812118017,297.98933549,0.00022639,2]
[310899897,1704812119011,-449.62479742,0.00022639,2]
[310899898,1704812119254,-9.17601627,0.00022639,2]
[310899899,1704812119283,-309.61298454,0.00022639,2]
[310899900,1704812124773,-510.42584981,0.00022638,2]
[310899901,1704812124848,-10.41685408,0.00022638,2]
[310899902,1704812127861,-182.50978617,0.00022639,2]
[310899903,1704812127890,-3220.8185049,0.0002423,2]
[310899904,1704812127924,-251.96546558,0.0002423,2]
[310899905,1704812129860,154.90705577,0.00022252,4]
[310899906,1704812144276,-154.90705577,0.00022639,2]
[310899907,1704812144305,-175.56534378,0.00022639,2]
[310899908,1704812144517,-6.74433468,0.00022639,2]
[310899909,1704812145728,154.90705577,0.00022247,4]
[310899910,1704812146699,330.47239955,0.00022638,2]
[310899911,1704812149354,2510.88730108,0.00027,7]
[310899912,1704812150349,-191.27695346,0.00022638,2]
[310899913,1704812150380,-1244.00410927,0.00022639,2]
[310899914,1704812150566,-29.29145026,0.00022639,2]
[310899915,1704812150610,1405.98961247,0.00018539,2]
[310899916,1704812150740,-59.39251078,0.00018539,2]
[310899917,1704812150770,-170.42946526,0.00022637,2]
[310899918,1704812150814,901.51710272,0.00022638,2]
[310899919,1704812150972,303.94198397,0.00022639,2]
[310899920,1704812151524,-2848.02839453,0.00022639,2]
[310899921,1704812151599,-58.12302846,0.00022639,2]
[310899922,1704812151638,-298.10141161,0.00022639,2]
[310899925,1704812155336,-1736.89858519,0.00022637,2]
[310899926,1704812155364,-136.33109388,0.00022637,2]
[310899927,1704812155554,-1114.06647616,0.00022637,2]
[310899928,1704812155582,-3885.93352384,0.00022639,2]
[310899929,1704812155641,-5000.0,0.00022639,2]
[310899930,1704812155888,-1392.13854312,0.00022639,2]
[310899931,1704812155920,-3607.86145688,0.00022639,2]
[310899932,1704812156002,-5000.0,0.00022639,2]
[310899933,1704812156136,-1511.17924663,0.00022639,2]
[310899934,1704812156166,-24.18559121,0.00023419,2]
[310899935,1704812156235,-150.37467979,0.00023419,2]
[310899936,1704812156411,154.90705577,0.00022639,2]
[310899937,1704812157640,154.90705577,0.00022639,2]
[310899938,1704812157950,533.98993958,0.00022639,2]
[310899939,1704812158454,165.99567581,0.00022639,2]
[310899940,1704812158823,1523.52499903,0.00022639,2]
[310899941,1704812159968,171.99470884,0.00022639,2]
[310899942,1704812160942,-606.9399809,0.00022639,2]
[310899943,1704812161087,-12.38653022,0.00022639,2]
[310899944,1704812161115,-342.35012709,0.00022639,2]
[310899945,1704812161656,252.20332359,0.00022639,2]
[310899946,1704812161684,606.9399809,0.00022639,2]
[310899947,1704812161712,606.9399809,0.00022639,2]
[310899948,1704812161741,347.64192416,0.00022639,2]
[310899949,1704812161769,347.64192416,0.00022639,2]
[310899950,1704812161803,-347.64192416,0.00022639,2]
[310899951,1704812162351,-5000.0,0.00022639,2]
[310899952,1704812162397,-5000.0,0.00022639,2]
[310899953,1704812162531,-5000.0,0.00022639,2]
[310899954,1704812162798,-1352.68268639,0.00022639,2]
[310899955,1704812162828,-3647.31731361,0.00022639,2]
[310899956,1704812162998,-1325.62903266,0.00022639,2]
[310899957,1704812163094,-237.09008464,0.00022639,2]
[310899958,1704812163126,-546.667706,0.00022639,2]
[310899959,1704812163733,154.90705577,0.00022247,4]
[310899960,1704812164070,155.32634091,0.00022639,2]
[310899961,1704812165855,182.50978617,0.00022639,2]
[310899962,1704812165900,353.22456571,0.00022639,2]
[310899963,1704812165929,535.73435188,0.00022639,2]
[310899964,1704812166412,-376.6499091,0.00022639,2]
[310899965,1704812166530,-7.68673284,0.00022639,2]
[310899966,1704812169915,-292.13938338,0.00022639,2]
[310899967,1704812170173,-5.96202823,0.00022639,2]
[310899968,1704812173508,-5000.0,0.00022639,2]
[310899969,1704812173855,-5000.0,0.00022639,2]
[310899970,1704812173950,-278.07206696,0.00022639,2]
[310899971,1704812174436,165.99567581,0.00022639,2]
[310899972,1704812175942,154.90705577,0.00022639,2]
[310899973,1704812177247,-169.52525545,0.00022639,2]
[310899974,1704812177276,-1489.66399394,0.00022639,2]
[310899975,1704812177434,-33.86100509,0.00022639,2]
[310899976,1704812177827,1625.3282443,0.00022639,2]
[310899977,1704812177856,1659.18924939,0.00022639,2]
[310899978,1704812177887,1659.18924939,0.00022639,2]
[310899979,1704812178447,-5000.0,0.00022639,2]
[310899980,1704812178581,-5000.0,0.00022639,2]
[310899981,1704812178870,-3917.98500118,0.00022639,2]
[310899982,1704812179174,154.90705577,0.00022639,2]
[310899983,1704812179228,927.10794305,0.00022639,2]
[310899984,1704812179258,680.23104574,0.00022639,2]
[310899985,1704812179608,544.38309678,0.00022639,2]
[310899986,1704812179959,533.98993958,0.00022639,2]
[310899987,1704812180465,619.32651112,0.00022639,2]
[310899988,1704812181735,154.90705577,0.00022247,4]
[310899989,1704812183594,-335.50312455,0.00022639,2]
[310899990,1704812183795,-6.84700254,0.00022639,2]
[310899991,1704812184138,-2896.44652177,0.00023977,5]
[310899992,1704812184414,-59.1111535,0.00023977,5]
[310899993,1704812188298,-197.51231479,0.00022639,2]
[310899994,1704812188340,-1243.87940204,0.00022639,2]
[310899995,1704812188505,-29.41615749,0.00022639,2]
[310899996,1704812188543,-1803.90775602,0.00022639,2]
[310899997,1704812188622,-1833.32391351,0.00022639,2]
[310899998,1704812188869,-193.55737782,0.00022639,2]
[310899999,1704812188915,-399.93081293,0.00023976,2]
[310900000,1704812189255,1239.83572276,0.00023976,2]
[310900001,1704812189294,2497.26213109,0.00023976,2]
[310900002,1704812189435,298.10141161,0.00022639,2]
[310900003,1704812190487,686.41228495,0.00023976,2]
[310900004,1704812191934,154.90705577,0.00022639,2]
[310900005,1704812193222,-1493.05449905,0.00022639,2]
[310900006,1704812193463,-30.47049998,0.00022639,2]
[310900007,1704812193492,-4969.52950002,0.00022639,2]
[310900008,1704812193563,-3430.88675005,0.00022639,2]
[310900009,1704812193827,1569.11324995,0.00022639,2]
[310900010,1704812193855,5000.0,0.00022639,2]
[310900011,1704812194256,-3558.2561282,0.00022639,2]
[310900012,1704812194368,-72.617472,0.00022639,2]
[310900013,1704812194469,154.90705577,0.00022639,2]
[310900014,1704812195962,510.47095499,0.00022639,2]
[310900015,1704812196982,154.90705577,0.00022639,2]
[310900016,1704812201551,-335.50312455,0.00022639,2]
[310900017,1704812201679,-6.84700254,0.00022639,2]
[310900018,1704812202228,328.65612201,0.00022639,2]
[310900019,1704812202258,335.50312455,0.00022639,2]
[310900020,1704812202290,335.50312455,0.00022639,2]
[310900021,1704812202887,-2831.12667624,0.00022639,2]
[310900022,1704812202933,-674.82630351,0.00022639,2]
[310900023,1704812203007,-71.55006081,0.00022639,2]
[310900024,1704812203729,154.90705577,0.00022163,4]
[310900025,1704812208199,-154.90705577,0.00022638,2]
[310900026,1704812208229,-313.2018976,0.00022638,2]
[310900027,1704812208303,-9.55324395,0.00022638,2]
[310900028,1704812208500,-711.76907996,0.00022639,2]
[310900029,1704812211910,-292.13938338,0.00022639,2]
[310900030,1704812212106,-5.96202823,0.00022639,2]
[310900031,1704812212877,154.90705577,0.00022639,2]
[310900032,1704812215385,-1493.05449905,0.00022639,2]
[310900033,1704812215524,-30.47049998,0.00022639,2]
[310900034,1704812215935,201.44653809,0.00022639,2]
[310900035,1704812217007,154.90705577,0.00022639,2]
[310900036,1704812218227,1493.05449905,0.00022639,2]
[310900037,1704812218257,1493.05449905,0.00022639,2]
[310900038,1704812218286,844.68004925,0.00022639,2]
[310900039,1704812219435,-333.97948722,0.00022639,2]
[310900040,1704812219709,-6.8159079,0.00022639,2]
[310900041,1704812219750,154.90705577,0.0002213,4]
[310900042,1704812231400,-154.90705577,0.00022639,2]
[310900043,1704812231436,-188.33751966,0.00023591,2]
[310900044,1704812231677,-7.00499134,0.00023591,2]
[310900045,1704812233194,164.20922315,0.0002359,2]
[310900046,1704812235607,-298.10141161,0.00022639,2]
[310900047,1704812235637,-55.33272059,0.0002359,2]
[310900048,1704812235837,-305.31435308,0.0002359,2]
[310900049,1704812236230,340.25916249,0.00022639,2]
[310900050,1704812236259,353.4341322,0.00022639,2]
[310900051,1704812236291,645.57351557,0.00022639,2]
[310900052,1704812236321,645.57351557,0.00022639,2]
[310900053,1704812236365,-299.20806602,0.00022639,2]
[310900054,1704812236436,-299.20806602,0.00022639,2]
[310900055,1704812236819,-1247.53258948,0.00022639,2]
[310900056,1704812236849,-126.85826287,0.00022639,2]
[310900057,1704812237162,-28.0487929,0.00022639,2]
[310900058,1704812237204,-305.85431023,0.00022639,2]
[310900059,1704812239170,1040.48774922,0.00022639,2]
[310900060,1704812239208,1374.39085235,0.00022639,2]
[310900061,1704812239254,327.22504107,0.00022639,2]
[310900062,1704812239282,327.22504107,0.00022639,2]
[310900063,1704812239571,-142.00570502,0.00022639,2]
[310900064,1704812239600,-164.88125202,0.0002359,2]
[310900065,1704812239691,3001.8043709,0.00022639,2]
[310900066,1704812239734,-300.7492179,0.00022639,2]
[310900067,1704812240107,-154.90705577,0.0002213,4]
[310900068,1704812240138,-1713.48808017,0.00022639,2]
[310900069,1704812240270,-193.03756875,0.00022639,2]
[310900070,1704812244372,-227.6016216,0.00022639,2]
[310900071,1704812244401,-4772.3983784,0.00022639,2]
[310900072,1704812244447,-5000.0,0.00022639,2]
[310900073,1704812244586,-5000.0,0.00022639,2]
[310900074,1704812244804,-4089.29336586,0.00022639,2]
[310900075,1704812245864,451.65400802,0.00022638,2]
[310900076,1704812247012,256.84685086,0.0002213,2]
[310900077,1704812249557,2510.88730108,0.00027,7]
[310900078,1704812250234,-4900.0,0.00023852,5]
[310900079,1704812250429,-100.0,0.00023852,5]
[310900080,1704812254199,-292.13938338,0.0002213,2]
[310900081,1704812254281,-5.96202823,0.0002213,2]
[310900082,1704812254311,-286.17735515,0.0002213,2]
[310900083,1704812254589,-292.13938338,0.0002213,2]
[310900084,1704812254628,-292.13938338,0.0002213,2]
[310900085,1704812254793,-292.13938338,0.0002213,2]
[310900086,1704812254860,-2668.19354206,0.0002213,2]
[310900087,1704812254969,805.5259163,0.0002213,2]
[310900088,1704812255120,-1918.95241088,0.0002213,2]
[310900089,1704812259562,150.90945433,0.00029897,120]
[310900090,1704812260235,-2814.96682589,0.00022129,2]
[310900091,1704812260539,-57.44830257,0.00022129,2]
[310900092,1704812261765,154.90705577,0.00022118,4]
[310900093,1704812262638,-154.90705577,0.0002213,2]
[310900094,1704812262669,-4845.09294423,0.0002213,2]
[310900095,1704812262816,-364.94348668,0.0002213,2]
[310900096,1704812263866,4635.05651332,0.0002213,2]
[310900097,1704812263897,1447.92710025,0.0002213,2]
[310900099,1704812267135,-225.82316213,0.00022129,2]
[310900100,1704812267387,-4.60863596,0.00022129,2]
[310900101,1704812273882,-292.13938338,0.0002213,2]
[310900102,1704812274087,-5.96202823,0.0002213,2]
[310900103,1704812276680,-3754.1732664,0.0002213,2]
[310900104,1704812276780,-76.61578095,0.0002213,2]
[310900105,1704812276809,-229.66933192,0.0002213,2]
[310900106,1704812282066,-629.93044377,0.00022129,2]
[310900107,1704812282367,-12.85572334,0.00022129,2]
[310900108,1704812283182,-1752.95193125,0.0002213,2]
[310900109,1704812283329,-35.77452921,0.0002213,2]
[310900110,1704812285779,154.90705577,0.00022117,4]
[310900111,1704812292708,-3754.1732664,0.0002213,2]
[310900112,1704812293014,-76.61578095,0.0002213,2]
[310900113,1704812295450,338.55564724,0.0002213,2]
[310900114,1704812312239,-154.90705577,0.00022116,2]
[310900115,1704812312269,-507.3277087,0.00022116,2]
[310900116,1704812312380,-13.51499519,0.00022116,2]
[310900117,1704812314680,-154.90705577,0.00022117,4]
[310900118,1704812314708,-3599.26621063,0.0002213,2]
[310900119,1704812314861,-231.52283672,0.0002213,2]
[310900120,1704812327093,-245.0,0.00023565,2]
[310900121,1704812327232,-5.0,0.00023565,2]
[310900122,1704812340625,-154.90705577,0.00022104,4]
[310900123,1704812340656,-3599.26621063,0.0002213,2]
[310900124,1704812340744,-231.52283672,0.0002213,2]
[310900125,1704812342166,170.42946526,0.00022103,2]
[310900126,1704812367555,-315.89290149,0.00022101,2]
[310900127,1704812367837,-6.44679391,0.00022101,2]
[310900128,1704812370320,178.40030532,0.00022101,2]
[310900129,1704812381102,-511.31436595,0.00022101,2]
[310900130,1704812381253,-10.43498706,0.00022101,2]
[310900131,1704812388474,-672.68403925,0.000221,2]
[310900132,1704812388690,-13.7282457,0.000221,2]
[310900133,1704812397339,-154.90705577,0.00022101,2]
[310900134,1704812397367,-148.71077354,0.00022101,2]
[310900135,1704812397542,-6.19628223,0.00022101,2]
[310900137,1704812411248,-3830.78904735,0.000221,2]
[310900138,1704812411278,-75.19313371,0.00022101,2]
[310900139,1704812411522,-79.71392206,0.00022101,2]
[310900140,1704812412807,901.51710272,0.000221,2]
[310900141,1704812415849,-316.30003872,0.000221,2]
[310900142,1704812416121,-6.45510283,0.000221,2]
[310900143,1704812416787,-154.90705577,0.00022102,4]
[310900144,1704812416822,-4845.09294423,0.00022562,2]
[310900145,1704812416943,-5000.0,0.00022562,2]
[310900146,1704812417035,-5000.0,0.00022562,2]
[310900147,1704812417149,-5000.0,0.00022562,2]
[310900148,1704812417502,-5000.0,0.00022562,2]
[310900149,1704812417707,-54.90705577,0.00022562,2]
[310900150,1704812420766,-542.93683161,0.00022101,2]
[310900151,1704812420912,-11.0803435,0.00022101,2]
[310900152,1704812427175,-2552.70431557,0.000221,2]
[310900153,1704812427301,-52.09600644,0.000221,2]
[310900155,1704812429782,154.90705577,0.00021202,4]
[310900162,1704812481059,-154.90705577,0.000212,4]
[310900163,1704812481090,-345.20204211,0.00022548,2]
[310900164,1704812481182,-165.11336389,0.00022548,2]
[310900165,1704812485763,-629.93044377,0.00021199,2]
[310900166,1704812485866,-12.85572334,0.00021199,2]
[310900170,1704812493704,-360.64707367,0.00023457,2]
[310900171,1704812493734,-172.02729381,0.00023458,2]
[310900172,1704812493979,-10.87090546,0.00023458,2]
[310900173,1704812495794,154.90705577,0.00021191,4]
[310900175,1704812512043,200.0,0.00025896,7]
[310900178,1704812541571,150.90945433,0.00028992,120]
[310900180,1704812570669,-511.31436595,0.00021189,2]
[310900181,1704812570765,-10.43498706,0.00021189,2]
[310900182,1704812571845,178.40030532,0.00021189,2]
[310900184,1704812582445,-154.90705577,0.0002119,4]
[310900185,1704812582475,-169.91439281,0.00023429,2]
[310900186,1704812582506,-8.21076133,0.0002343,2]
[310900187,1704812582552,-161.70363148,0.0002343,2]
[310900188,1704812584298,154.90705577,0.00021189,2]
[310900189,1704812592361,-169.91439281,0.00023431,2]
[310900190,1704812592392,-163.1178171,0.00023433,2]
[310900191,1704812592531,-6.79657571,0.00023433,2]
[310900193,1704812594453,333.03220991,0.00022639,2]
[310900194,1704812594835,-492.17933209,0.00022639,2]
[310900195,1704812595066,-10.04447617,0.00022639,2]
[310900196,1704812602369,-154.90705577,0.00021173,4]
[310900197,1704812602399,-169.91439281,0.00023434,2]
[310900198,1704812602429,-8.21076133,0.00023435,2]
[310900199,1704812602516,-161.70363148,0.00023435,2]
[310900204,1704812620998,-154.90705577,0.00021172,4]
[310900205,1704812621027,-2425.16702691,0.00022523,2]
[310900206,1704812621205,-207.56162889,0.00022523,2]
[310900208,1704812660485,-451.65400802,0.00021162,2]
[310900209,1704812660515,-142.77583449,0.00021163,2]
[310900210,1704812660681,-12.13122128,0.00021163,2]
[310900212,1704812681868,-316.30003872,0.00021163,2]
[310900213,1704812682039,-6.45510283,0.00021163,2]
[310900215,1704812694717,-430.56432936,0.00021163,2]
[310900216,1704812694871,-8.78702713,0.00021163,2]
[310900217,1704812697059,-154.90705577,0.00021164,4]
[310900218,1704812697089,-287.71387209,0.00023501,2]
[310900219,1704812697302,-163.94013593,0.00023501,2]
[310900223,1704812702837,-5000.0,0.00023501,2]
[310900224,1704812703114,-5000.0,0.00023501,2]
[310900225,1704812703199,-5000.0,0.00023501,2]
[310900226,1704812703304,-877.13272686,0.00023501,2]
[310900228,1704812704799,2029.47846271,0.00023501,2]
[310900231,1704812707161,-672.68403925,0.00023501,2]
[310900233,1704812707196,-13.7282457,0.00023501,2]
[310900252,1704812718715,-154.90705577,0.00021158,4]
[310900253,1704812718745,-4845.09294423,0.00023501,2]
[310900254,1704812718904,-5000.0,0.00023501,2]
[310900255,1704812719037,-5000.0,0.00023501,2]
[310900257,1704812719159,-5000.0,0.00023501,2]
[310900258,1704812719259,-5000.0,0.00023501,2]
[310900259,1704812719454,-5000.0,0.00023501,2]
[310900260,1704812719526,-5000.0,0.00023501,2]
[310900261,1704812719617,-1973.42574315,0.00023501,2]
[310900264,1704812723263,-5000.0,0.00023501,2]
[310900265,1704812723447,-154.90705577,0.000235,2]
[310900266,1704812723478,-4845.09294423,0.00023501,2]
[310900267,1704812723586,-5000.0,0.00023501,2]
[310900269,1704812723825,-5000.0,0.00023501,2]
[310900270,1704812723925,-3961.49505018,0.00023501,2]
[310900273,1704812724815,1038.50494982,0.000235,2]
[310900274,1704812724846,988.29540761,0.000235,2]
[310900280,1704812730486,-1555.13506356,0.00023501,2]
[310900281,1704812730677,-31.73745028,0.00023501,2]
[310900283,1704812731857,1523.39761328,0.00023501,2]
[310900284,1704812731887,1555.13506356,0.00023501,2]
[310900285,1704812732876,-5000.0,0.00023501,2]
[310900286,1704812732939,-5000.0,0.00023501,2]
[310900287,1704812732995,-5000.0,0.00023501,2]
[310900288,1704812733047,-5000.0,0.00023501,2]
[310900289,1704812733102,-5000.0,0.00023501,2]
[310900290,1704812733177,-5000.0,0.00023501,2]
[310900291,1704812733288,-5000.0,0.00023501,2]
[310900292,1704812733430,-5000.0,0.00023501,2]
[310900293,1704812733520,-5000.0,0.00023501,2]
[310900294,1704812733624,-5000.0,0.00023501,2]
[310900295,1704812733737,-5000.0,0.00023501,2]
[310900296,1704812733866,-5000.0,0.00023501,2]
[310900297,1704812733975,-5000.0,0.00023501,2]
[310900298,1704812734091,-5000.0,0.00023501,2]
[310900299,1704812734197,-5000.0,0.00023501,2]
[310900300,1704812734271,-4418.47635328,0.00023501,2]
[310900301,1704812734627,581.52364672,0.000235,2]
[310900302,1704812734665,4334.989371,0.000235,2]
[310900303,1704812736680,5000.0,0.00023274,2]
[310900304,1704812736721,4330.10682621,0.00023274,2]
[310900305,1704812736996,-5000.0,0.00023274,2]
[310900306,1704812737118,-5000.0,0.00023274,2]
[310900307,1704812737306,-4476.4811682,0.00023274,2]
[310900308,1704812737344,-523.5188318,0.000235,2]
[310900309,1704812737407,-4263.81542812,0.000235,2]
[310900310,1704812737738,-5000.0,0.00023501,2]
[310900311,1704812737927,-5000.0,0.00023501,2]
[310900312,1704812738006,-496.72843604,0.00023501,2]
[310900313,1704812742810,-154.90705577,0.00021158,4]
[310900315,1704812743235,-5000.0,0.00023501,2]
[310900316,1704812743439,-5000.0,0.00023501,2]
[310900317,1704812743546,-5000.0,0.00023501,2]
[310900318,1704812743682,-4655.90106703,0.00023501,2]
[310900319,1704812744240,234.49,0.000235,3]
[310900321,1704812745553,109.60893297,0.000235,2]
[310900322,1704812745582,45.2981228,0.000235,2]
[310900323,1704812745767,2872.41512846,0.00023501,2]
[310900324,1704812750322,-797.63382347,0.000235,2]
[310900325,1704812750351,-4202.36617653,0.00023501,2]
[310900326,1704812750527,-5000.0,0.00023501,2]
[310900327,1704812750628,-5000.0,0.00023501,2]
[310900328,1704812750749,-5000.0,0.00023501,2]
[310900329,1704812750901,-5000.0,0.00023501,2]
[310900330,1704812750992,-5000.0,0.00023501,2]
[310900332,1704812751084,-5000.0,0.00023501,2]
[310900333,1704812751431,-5000.0,0.00023501,2]
[310900334,1704812751505,-5000.0,0.00023501,2]
[310900335,1704812751579,-5000.0,0.00023501,2]
[310900336,1704812751704,-5000.0,0.00023501,2]
[310900337,1704812751791,-5000.0,0.00023501,2]
[310900338,1704812751899,-5000.0,0.00023501,2]
[310900340,1704812752012,-5000.0,0.00023501,2]
[310900341,1704812752118,-5000.0,0.00023501,2]
[310900342,1704812752241,-5000.0,0.00023501,2]
[310900343,1704812752336,-3294.64285359,0.00023501,2]
[310900344,1704812752671,1705.35714641,0.000235,2]
[310900345,1704812752702,3081.97711351,0.000235,2]
[310900347,1704812758643,-195.4,0.00023498,3]
[310900348,1704812758672,-4804.6,0.00023501,2]
[310900349,1704812758857,-5000.0,0.00023501,2]
[310900350,1704812758985,-737.95231419,0.00023501,2]
[310900351,1704812759016,-4262.04768581,0.00023501,2]
[310900352,1704812759106,-5000.0,0.00023501,2]
[310900353,1704812759215,-5000.0,0.00023501,2]
[310900354,1704812759329,-1794.62982712,0.00023501,2]
[310900355,1704812759565,154.90705577,0.000235,2]
[310900356,1704812759815,154.90705577,0.0002115,4]
[310900365,1704812780915,-154.90705577,0.00021155,4]
[310900366,1704812780945,-50.62834423,0.00023497,3]
[310900367,1704812781222,-159.10165577,0.00023497,3]
[310900372,1704812803401,-154.90705577,0.00021154,4]
[310900373,1704812803432,-934.8637649,0.00021154,2]
[310900374,1704812803559,-177.1472766,0.00021154,2]
[310900375,1704812805530,-873.92,0.00023496,3]
[310900376,1704812805559,-153.806,0.00023497,3]
[310900377,1704812805761,-20.974,0.00023497,3]
[310900378,1704812823347,-1022.36715716,0.00021152,2]
[310900379,1704812823378,-151.46138565,0.00021154,4]
[310900380,1704812823613,-3.44567012,0.00021154,4]
[310900381,1704812823645,-175.4170702,0.00022125,2]
[310900382,1704812831988,-5000.0,0.00023501,2]
[310900383,1704812832353,-5000.0,0.00023501,2]
[310900384,1704812832485,-5000.0,0.00023501,2]
[310900385,1704812832663,-4655.90106703,0.00023501,2]
[310900386,1704812837774,-4691.58757472,0.00023501,2]
[310900387,1704812838678,-95.7466852,0.00023501,2]
[310900388,1704812839824,154.90705577,0.00021151,4]
[310900390,1704812846159,-672.68403925,0.00023501,2]
[310900391,1704812846308,-13.7282457,0.00023501,2]
[310900392,1704812862949,-154.90705577,0.00021152,4]
[310900393,1704812862981,-4845.09294423,0.00023501,2]
[310900394,1704812863101,-5000.0,0.00023501,2]
[310900395,1704812863257,-5000.0,0.00023501,2]
[310900396,1704812863519,-1032.03978263,0.00023501,2]
[310900397,1704812863549,-3967.96021737,0.00023501,2]
[310900398,1704812863634,-5000.0,0.00023501,2]
[310900399,1704812863828,-5000.0,0.00023501,2]
[310900400,1704812863942,-5000.0,0.00023501,2]
[310900403,1704812864083,-5000.0,0.00023501,2]
[310900404,1704812864342,-5000.0,0.00023501,2]
[310900405,1704812864410,-5000.0,0.00023501,2]
[310900406,1704812864500,-2850.55847001,0.00023501,2]
[310900409,1704812875447,-5000.0,0.00023501,2]
[310900410,1704812875593,-2941.85502117,0.00023501,2]
[310900411,1704812879455,-5000.0,0.00023501,2]
[310900412,1704812879646,-5000.0,0.00023501,2]
[310900414,1704812879771,-3689.20949741,0.00023501,2]
[310900415,1704812881824,154.90705577,0.00021153,4]
[310900419,1704812903074,-154.90705577,0.00021151,4]
[310900420,1704812903103,-4845.09294423,0.00021153,2]
[310900421,1704812903208,-5000.0,0.00021153,2]
[310900422,1704812903365,-5000.0,0.00021153,2]
[310900423,1704812903477,-5000.0,0.00021153,2]
[310900424,1704812903616,-5000.0,0.00021153,2]
[310900425,1704812903702,-5000.0,0.00021153,2]
[310900426,1704812903861,-5000.0,0.00021153,2]
[310900427,1704812903936,-5000.0,0.00021153,2]
[310900428,1704812904061,-5000.0,0.00021153,2]
[310900429,1704812904158,-1398.0987748,0.00021153,2]
[310900430,1704812910078,-351.42573665,0.00022,4]
[310900431,1704812910110,-1587.43037398,0.00023501,2]
[310900432,1704812910159,-390.9942287,0.00023501,2]
[310900440,1704812918209,-250.05454894,0.00022508,2]
[310900441,1704812918978,-5.10315406,0.00022508,2]
[310900448,1704812941592,-154.90705577,0.00021151,4]
[310900449,1704812941621,-3507.448841,0.00023501,2]
[310900450,1704812941714,-229.64901285,0.00023501,2]
[310900461,1704812957485,-2260.51952807,0.00023501,2]
[310900462,1704812957628,-46.13305159,0.00023501,2]
[310900463,1704812957841,154.90705577,0.00021151,4]
[310900473,1704812989062,-154.90705577,0.00021151,4]
[310900474,1704812989093,-86.93961168,0.00023501,2]
[310900475,1704812989267,-159.84270204,0.00023501,2]
[310900482,1704813008544,-154.90705577,0.00021151,4]
[310900483,1704813008574,-686.41228495,0.00022233,2]